bitfinex-derivatives/quotes_SOLF0:USTF0_20250626
["timestamp","ask_amount","ask_price","bid_price","bid_amount"]
[1750965568484,7.84395955,142.22,142.2,4.53945457]
[1750965568682,2.58708631,142.21,142.2,11.56935457]
[1750965568887,35.92,142.24,142.2,4.53945457]
[1750965569190,7.84233588,142.23,142.22,7.0284]
[1750965569779,2.58653496,142.23,142.22,7.0284]
[1750965570380,7.83745943,142.26,142.22,7.0284]
[1750965570587,2.58387529,142.25,142.22,7.0284]
[1750965570782,4.53945457,142.26,142.17,43.1123]
[1750965570982,7.83429472,142.25,142.18,4.53945457]
[1750965571294,7.0286,142.23,142.18,4.53945457]
[1750965571485,5.24865934,142.25,142.18,4.53945457]
[1750965571685,4.53945457,142.26,142.18,4.53945457]
[1750965571888,4.53945457,142.24,142.17,42.85445457]
[1750965572090,35.92,142.27,142.17,42.85445457]
[1750965572291,4.53945457,142.25,142.17,42.85445457]
[1750965572589,7.029,142.22,142.19,7.0301]
[1750965573489,7.029,142.22,142.2,7.0298]
[1750965573687,7.0285,142.23,142.2,7.0298]
[1750965574382,7.0292,142.22,142.19,7.0299]
[1750965574583,2.59025812,142.24,142.19,7.0299]
[1750965574794,4.53945457,142.23,142.17,42.85445457]
[1750965574995,7.0296,142.21,142.18,7.0306]
[1750965575195,4.53945457,142.23,142.17,42.85445457]
[1750965575691,4.53945457,142.23,142.19,7.0301]
[1750965576285,7.0295,142.21,142.19,7.0301]
[1750965576892,35.9,142.23,142.17,35.92]
[1750965577097,4.53945457,142.22,142.17,35.92]
[1750965577292,7.0296,142.21,142.18,7.0305]
[1750965577791,4.53945457,142.22,142.18,7.0305]
[1750965578292,7.0295,142.21,142.18,7.0305]
[1750965578496,4.53945457,142.22,142.17,7.0313]
[1750965579489,9.86183186,142.22,142.17,7.0313]
[1750965579791,9.86195389,142.22,142.17,7.0313]
[1750965580000,7.0305,142.19,142.17,7.0313]
[1750965580194,4.53945457,142.2,142.15,35.9]
[1750965580798,7.0309,142.18,142.16,7.0318]
[1750965581197,7.0322,142.16,142.13,7.033]
[1750965581390,4.53945457,142.18,142.12,38.3118]
[1750965581794,7.0316,142.17,142.14,7.0324]
[1750965582401,11.57055457,142.18,142.15,7.0322]
[1750965582899,7.0315,142.17,142.14,7.0326]
[1750965583092,7.0315,142.17,142.12,38.3118]
[1750965583902,7.0319,142.16,142.14,7.0325]
[1750965584104,4.53945457,142.16,142.12,35.9]
[1750965584297,4.53945457,142.14,142.09,35.9]
[1750965584800,4.53945457,142.14,142.1,7.0346]
[1750965585001,7.0337,142.13,142.1,7.0346]
[1750965586003,4.53945457,142.14,142.1,7.0346]
[1750965586303,7.0336,142.13,142.1,7.0346]
[1750965587502,11.57255457,142.14,142.11,7.0342]
[1750965587801,35.9,142.15,142.08,2.3361]
[1750965588002,42.9326,142.15,142.12,7.0335]
[1750965588897,35.9,142.15,142.09,2.2838]
[1750965589593,42.9324,142.15,142.13,7.0333]
[1750965589997,35.9,142.15,142.13,7.0333]
[1750965590402,40.43945457,142.18,142.11,35.9]
[1750965590603,7.0316,142.17,142.12,4.53945457]
[1750965590809,40.43945457,142.18,142.15,7.0321]
[1750965591107,7.0314,142.17,142.15,7.0321]
[1750965592209,40.43945457,142.18,142.16,7.0316]
[1750965592210,35.9,142.18,142.16,7.0316]
[1750965592808,7.0309,142.18,142.16,7.0316]
[1750965593198,4.53945457,142.2,142.15,7.0323]
[1750965593810,7.0312,142.18,142.15,7.0323]
[1750965593999,7.0312,142.18,142.16,7.0318]
[1750965594313,7.0312,142.18,142.14,4.53945457]
[1750965594611,7.0312,142.18,142.15,7.0321]
[1750965595000,4.53945457,142.2,142.15,7.0321]
[1750965595210,7.0315,142.17,142.14,7.0326]
[1750965595806,4.53945457,142.18,142.13,7.033]
[1750965596299,7.0323,142.16,142.13,7.0331]
[1750965596804,7.0323,142.16,142.11,35.9]
[1750965597007,7.0323,142.16,142.13,7.0331]
[1750965597310,7.0323,142.16,142.1,4.53945457]
[1750965597498,7.0323,142.16,142.1,40.61945457]
[1750965597703,4.53945457,142.2,142.12,4.53945457]
[1750965598105,4.53945457,142.2,142.14,7.0326]
[1750965598310,9.83397396,142.2,142.14,7.0326]
[1750965598703,7.0316,142.17,142.12,4.53945457]
[1750965599201,9.83397397,142.2,142.14,7.0326]
[1750965599815,7.0317,142.17,142.14,7.0326]
[1750965600612,4.53945457,142.2,142.14,7.0326]
[1750965601008,2.58842222,142.19,142.14,7.0326]
[1750965601315,7.0321,142.16,142.14,7.0326]
[1750965602317,7.0324,142.15,142.13,7.0331]
[1750965603513,4.53945457,142.18,142.12,7.0336]
[1750965603708,4.53945457,142.14,142.1,36.08]
[1750965603911,4.53945457,142.14,142.09,2.2838]
[1750965604311,12.44643078,142.13,142.06,36.08]
[1750965604503,9.85152723,142.15,142.07,4.53945457]
[1750965604703,7.0341,142.12,142.09,7.0349]
[1750965605104,7.0341,142.12,142.1,7.0346]
[1750965605508,7.0336,142.13,142.07,4.53945457]
[1750965605709,4.53945457,142.15,142.07,4.53945457]
[1750965605907,4.53945457,142.15,142.07,6.84975457]
[1750965606111,7.0334,142.13,142.07,6.84975457]
[1750965606611,7.0331,142.14,142.07,6.84975457]
[1750965606913,4.53945457,142.15,142.07,6.84975457]
[1750965607610,4.53945457,142.15,142.12,7.0335]
[1750965607812,4.53945457,142.15,142.07,6.84975457]
[1750965608319,2.59524759,142.14,142.07,6.84975457]
[1750965608512,4.53945457,142.15,142.07,6.84975457]
[1750965608714,2.59534777,142.14,142.07,2.3103]
[1750965609019,7.0341,142.12,142.07,2.3103]
[1750965610217,4.53945457,142.11,142.06,36.08]
[1750965610420,4.53945457,142.09,142.03,36.08]
[1750965610724,7.0361,142.08,142.03,36.08]
[1750965610917,4.53945457,142.09,142.03,36.08]
[1750965611325,11.57515457,142.09,142.06,7.0366]
[1750965613726,7.0357,142.09,142.06,7.0366]
[1750965614511,40.61945457,142.11,142.06,7.0366]
[1750965615928,7.0357,142.09,142.03,36.08]
[1750965617416,7.0357,142.09,142.06,7.0365]
[1750965618234,7.0357,142.09,142.07,7.0363]
[1750965618637,7.0357,142.09,142.03,36.08]
[1750965619132,7.0357,142.09,142.06,7.0364]
[1750965619632,2.2693,142.16,142.04,4.53945457]
[1750965619835,5.26108486,142.12,142.06,4.53945457]
[1750965620134,7.0346,142.11,142.06,4.53945457]
[1750965620832,7.0348,142.1,142.03,36.08]
[1750965621032,4.53945457,142.12,142.04,4.53945457]
[1750965621239,4.53945457,142.12,142.08,7.0354]
[1750965621737,7.0346,142.11,142.04,4.53945457]
[1750965621938,7.0346,142.11,142.06,4.53945457]
[1750965623234,9.61316186,142.11,142.06,4.53945457]
[1750965623540,9.61316186,142.11,142.08,7.0354]
[1750965623734,2.57856186,142.11,142.06,4.53945457]
[1750965624324,2.57856186,142.11,142.1,7.0348]
[1750965624731,12.29885686,142.13,142.1,7.0348]
[1750965625332,5.26525686,142.13,142.07,40.65945457]
[1750965625537,4.53945457,142.14,142.07,40.65945457]
[1750965626139,7.034,142.12,142.07,40.65945457]
[1750965626734,7.0336,142.13,142.1,7.0344]
[1750965628239,36.1,142.15,142.09,4.53945457]
[1750965628443,2.57939528,142.14,142.09,4.53945457]
[1750965628740,7.0331,142.14,142.12,7.0335]
[1750965629541,43.1326,142.15,142.13,7.0333]
[1750965629740,2.57949795,142.14,142.13,7.0333]
[1750965630132,9.61239795,142.14,142.12,7.0336]
[1750965630332,36.1,142.15,142.09,4.53945457]
[1750965630537,36.12,142.18,142.13,4.53945457]
[1750965630734,7.84492725,142.17,142.15,7.0322]
[1750965630940,2.57912631,142.16,142.13,4.53945457]
[1750965631239,7.0307,142.19,142.16,7.0315]
[1750965631438,7.84323862,142.18,142.16,7.0315]
[1750965631639,2.57855547,142.17,142.16,7.0315]
[1750965632848,7.84319243,142.17,142.16,7.0315]
[1750965633742,4.53945457,142.2,142.12,4.53945457]
[1750965634150,7.0319,142.16,142.12,4.53945457]
[1750965634538,7.0319,142.16,142.13,7.0329]
[1750965636050,4.53945457,142.2,142.13,4.53945457]
[1750965636242,2.58116025,142.19,142.13,4.53945457]
[1750965636444,4.53945457,142.2,142.13,4.53945457]
[1750965636646,2.58100515,142.19,142.13,4.53945457]
[1750965636951,38.55,142.23,142.15,4.53945457]
[1750965637145,4.53945457,142.21,142.15,4.53945457]
[1750965637347,7.89099548,142.2,142.13,4.53945457]
[1750965637650,7.0307,142.19,142.16,7.0317]
[1750965638053,7.0309,142.18,142.15,7.0321]
[1750965638350,7.0309,142.18,142.13,4.53945457]
[1750965639439,4.53945457,142.21,142.13,4.53945457]
[1750965639650,4.53945457,142.19,142.13,4.53945457]
[1750965639952,4.53945457,142.19,142.11,40.63945457]
[1750965640152,2.59894169,142.18,142.11,40.63945457]
[1750965640355,40.63945457,142.19,142.11,40.63945457]
[1750965640653,7.0321,142.16,142.13,7.033]
[1750965640953,40.63945457,142.19,142.13,7.033]
[1750965641155,7.0322,142.16,142.13,7.033]
[1750965641948,2.59892705,142.18,142.13,7.033]
[1750965642149,40.63945457,142.19,142.13,7.033]
[1750965642349,40.63945457,142.19,142.11,40.63945457]
[1750965642652,7.0312,142.18,142.11,40.63945457]
[1750965643153,7.0312,142.18,142.15,7.0321]
[1750965643745,7.0312,142.18,142.13,4.53945457]
[1750965644350,7.0312,142.18,142.15,7.0321]
[1750965644551,36.1,142.19,142.13,4.53945457]
[1750965645857,7.0312,142.18,142.15,7.032]
[1750965646761,7.0312,142.18,142.16,7.0318]
[1750965647553,43.1306,142.19,142.17,7.031]
[1750965647757,36.1,142.19,142.17,7.031]
[1750965647955,2.58947233,142.21,142.15,4.53945457]
[1750965648153,40.63945457,142.22,142.15,4.53945457]
[1750965648355,7.0302,142.2,142.18,7.0306]
[1750965648555,40.63945457,142.22,142.15,40.63945457]
[1750965648858,40.63945457,142.22,142.17,4.53945457]
[1750965648859,36.1,142.22,142.17,4.53945457]
[1750965649463,43.1293,142.22,142.19,7.03]
[1750965650158,36.1,142.22,142.18,7.0306]
[1750965650362,4.53945457,142.2,142.15,36.1]
[1750965650763,7.0306,142.19,142.16,7.0314]
[1750965650954,7.0306,142.19,142.15,36.1]
[1750965651258,7.0303,142.2,142.17,7.0311]
[1750965651460,2.59069406,142.21,142.15,36.1]
[1750965651662,40.63945457,142.22,142.15,36.1]
[1750965651861,2.59069406,142.21,142.15,36.1]
[1750965652062,7.0307,142.19,142.16,7.0315]
[1750965652454,7.0307,142.19,142.17,7.0313]
[1750965653949,7.0307,142.19,142.16,7.0316]
[1750965655254,7.0309,142.18,142.15,43.1322]
[1750965655451,4.53945457,142.2,142.13,9.34055457]
[1750965655966,7.0309,142.18,142.14,7.0325]
[1750965656155,7.0309,142.18,142.13,9.34055457]
[1750965656357,7.0309,142.18,142.15,7.032]
[1750965656964,7.0315,142.17,142.13,9.34055457]
[1750965658364,7.0315,142.17,142.13,4.8011]
[1750965659266,7.0315,142.17,142.14,7.0325]
[1750965661980,40.53945457,142.18,142.09,635.3098]
[1750965662167,4.53945457,142.16,142.09,675.84925457]
[1750965663378,4.53945457,142.16,142.09,36.0]
[1750965663570,2.5981701,142.15,142.09,36.0]
[1750965663769,4.53945457,142.16,142.09,36.0]
[1750965664080,7.0336,142.13,142.1,7.0344]
[1750965664666,7.0331,142.14,142.11,7.0342]
[1750965664973,4.53945457,142.16,142.11,7.0342]
[1750965665277,7.0333,142.14,142.11,7.0342]
[1750965665772,7.0334,142.13,142.1,7.0344]
[1750965665976,4.53945457,142.12,142.06,2.2901]
[1750965666274,11.57445457,142.1,142.07,7.0363]
[1750965666475,4.53945457,142.1,142.07,7.0363]
[1750965666677,4.53945457,142.1,142.05,36.0]
[1750965666875,7.0363,142.07,142.05,43.0372]
[1750965667073,40.53945457,142.1,142.05,7.0372]
[1750965667373,40.53945457,142.1,142.03,2.4529]
[1750965667374,4.53945457,142.08,142.03,2.4529]
[1750965667574,4.53945457,142.08,142.01,38.3594]
[1750965667778,4.53945457,142.08,142.0,3.82708]
[1750965667979,11.57675457,142.06,142.0,3.82708]
[1750965668179,47.57675457,142.06,142.0,8.36653457]
[1750965668476,47.57675457,142.06,142.0,3.82708]
[1750965668681,47.57675457,142.06,142.0,8.36653457]
[1750965668870,47.57675457,142.06,142.03,7.038]
[1750965669270,7.0374,142.05,142.0,3.82708]
[1750965669468,7.0374,142.05,142.02,7.0383]
[1750965669975,47.57645457,142.06,142.0,3.82708]
[1750965670376,7.0373,142.05,142.0,3.82708]
[1750965671574,7.0373,142.05,142.02,7.0385]
[1750965673976,7.0379,142.04,142.01,7.0391]
[1750965674483,4.53945457,142.05,142.0,3.82708]
[1750965674983,11.57695457,142.05,142.02,7.0385]
[1750965676284,7.0379,142.04,142.01,7.039]
[1750965676488,4.53945457,142.05,142.01,0.02000791]
[1750965676693,7.0388,142.02,142.0,3.82708]
[1750965676889,43.0588,142.02,142.0,3.82708]
[1750965677281,36.02,142.02,142.0,10.86678]
[1750965677989,36.02,142.02,142.01,7.0393]
[1750965678191,36.02,142.02,142.0,3.82708]
[1750965680289,36.02,142.02,142.01,7.0393]
[1750965680485,36.02,142.02,142.0,3.82708]
[1750965682595,7.0393,142.01,142.0,3.82708]
[1750965683094,43.0591,142.02,142.0,3.82708]
[1750965683896,43.0591,142.02,142.0,10.86688]
[1750965684088,44.91552487,142.03,142.0,10.86688]
[1750965684291,40.51945457,142.03,142.0,10.86688]
[1750965684797,47.55795457,142.03,142.0,10.86688]
[1750965684995,40.51945457,142.03,142.0,10.86688]
[1750965686297,7.039,142.02,142.0,10.86688]
[1750965686498,7.039,142.02,142.0,3.82708]
[1750965688897,40.51945457,142.03,142.0,10.86658]
[1750965689398,7.039,142.02,142.0,10.86658]
[1750965689800,7.039,142.02,142.0,3.82708]
[1750965690799,7.0393,142.01,142.0,3.82708]
[1750965693397,4.53945457,142.01,141.94,36.02]
[1750965694000,4.53945457,142.01,141.96,7.0415]
[1750965694201,7.0405,141.99,141.96,7.0415]
[1750965694592,4.53945457,142.01,141.95,4.53945457]
[1750965694998,7.04,142.0,141.95,4.53945457]
[1750965695193,2.3063,142.02,141.95,4.53945457]
[1750965695398,7.0393,142.01,141.95,4.53945457]
[1750965695800,7.0393,142.01,141.94,36.02]
[1750965696106,7.0393,142.01,141.96,4.53945457]
[1750965696308,7.0393,142.01,141.98,7.0405]
[1750965697003,7.0399,142.0,141.98,7.0405]
[1750965698206,7.0395,142.01,141.97,7.041]
[1750965698507,7.0395,142.01,141.96,4.53945457]
[1750965699708,7.039,142.02,141.96,4.53945457]
[1750965700107,7.039,142.02,142.0,7.0398]
[1750965700410,7.0393,142.01,141.96,4.53945457]
[1750965700611,7.0393,142.01,141.99,7.04]
[1750965702411,7.039,142.02,142.0,7.0398]
[1750965702614,35.98,142.03,141.98,4.53945457]
[1750965702808,38.2863,142.06,142.0,4.53945457]
[1750965703016,35.98,142.06,142.0,4.53945457]
[1750965703508,7.0379,142.04,142.02,7.0385]
[1750965704811,7.0375,142.05,142.03,7.0383]
[1750965705703,4.6403,142.09,142.02,4.53945457]
[1750965705907,2.54218068,142.08,142.04,4.53945457]
[1750965706107,35.98,142.09,142.04,4.53945457]
[1750965706316,7.0359,142.08,142.06,7.0366]
[1750965706917,43.0156,142.09,142.06,7.0366]
[1750965707212,6.96035457,142.13,142.06,4.53945457]
[1750965707413,43.63812994,142.12,142.06,4.53945457]
[1750965707714,7.65812994,142.11,142.06,4.53945457]
[1750965707917,35.98,142.12,142.06,4.53945457]
[1750965708220,14.69187888,142.11,142.08,7.0356]
[1750965708417,7.0346,142.11,142.08,7.0356]
[1750965708618,43.014,142.12,142.09,7.0352]
[1750965708817,4.53945457,142.11,142.03,4.53945457]
[1750965709224,7.0359,142.08,142.05,7.037]
[1750965711316,4.53945457,142.07,142.0,2.3785]
[1750965711711,2.56881735,142.06,142.0,2.3785]
[1750965711911,7.0374,142.05,142.02,7.0385]
[1750965713619,7.0374,142.05,142.03,7.0382]
[1750965714524,7.0369,142.06,142.04,7.0377]
[1750965715921,7.0366,142.07,142.05,7.0373]
[1750965716232,35.98,142.08,142.05,7.0373]
[1750965717424,43.016,142.08,142.05,7.0373]
[1750965718219,7.0364,142.07,142.04,7.0374]
[1750965718609,35.98,142.08,142.03,4.53945457]
[1750965718819,43.0161,142.08,142.05,7.037]
[1750965719122,35.98,142.08,142.05,7.037]
[1750965719320,7.0366,142.07,142.04,7.0376]
[1750965719622,7.0366,142.07,142.03,4.53945457]
[1750965720121,7.0366,142.07,142.05,7.037]
[1750965721322,7.0368,142.06,142.04,7.0377]
[1750965721619,35.98,142.08,142.04,7.0377]
[1750965721826,35.98,142.08,142.01,4.53945457]
[1750965722015,7.0366,142.07,142.04,7.0373]
[1750965722524,7.0366,142.07,142.01,4.53945457]
[1750965722525,7.0366,142.07,142.05,7.0371]
[1750965722929,43.016,142.08,142.05,7.0371]
[1750965725723,43.016,142.08,142.06,7.0367]
[1750965726027,7.0364,142.07,142.03,4.53945457]
[1750965726324,7.0364,142.07,142.05,7.0372]
[1750965727130,43.0161,142.08,142.05,7.0372]
[1750965727526,43.0161,142.08,142.03,4.53945457]
[1750965728522,9.4616,142.1,142.03,4.53945457]
[1750965728724,7.0352,142.1,142.05,4.53945457]
[1750965729233,35.94,142.11,142.05,4.53945457]
[1750965729430,35.94,142.11,142.05,7.01405457]
[1750965729621,7.0349,142.1,142.08,7.0356]
[1750965730229,42.9746,142.11,142.08,7.0356]
[1750965730430,42.9746,142.11,142.09,7.0352]
[1750965732726,35.94,142.11,142.1,7.0348]
[1750965732928,38.3562,142.14,142.07,4.53945457]
[1750965733532,4.53945457,142.13,142.05,7.1902]
[1750965733725,2.56289482,142.12,142.05,9.35905457]
[1750965733924,9.73222826,142.13,142.05,9.35905457]
[1750965734126,7.0351,142.1,142.07,7.0363]
[1750965734526,7.0351,142.1,142.05,9.35905457]
[1750965735523,7.0353,142.09,142.07,7.0359]
[1750965736037,7.0353,142.09,142.06,7.0366]
[1750965736530,38.3562,142.14,142.04,35.94]
[1750965736531,35.94,142.1,142.04,35.94]
[1750965737735,35.94,142.1,142.05,4.53945457]
[1750965738331,7.0356,142.09,142.07,7.0362]
[1750965739837,42.9751,142.1,142.05,4.53945457]
[1750965740242,7.0351,142.1,142.05,4.53945457]
[1750965740444,7.0351,142.1,142.08,7.0357]
[1750965741242,51.0345,142.11,142.09,7.0353]
[1750965742743,51.0345,142.11,142.1,7.0348]
[1750965742744,44.0,142.11,142.1,7.0348]
[1750965742942,44.0,142.11,142.07,4.53945457]
[1750965743144,44.0,142.11,142.09,4.53945457]
[1750965743341,44.0,142.11,142.1,7.0348]
[1750965743849,44.0,142.11,142.08,40.47945457]
[1750965744048,44.0,142.11,142.08,35.94]
[1750965744350,44.0,142.11,142.08,42.9754]
[1750965745244,44.0,142.11,142.08,35.94]
[1750965745445,44.0,142.11,142.1,7.0348]
[1750965745842,44.0,142.11,142.09,7.0351]
[1750965746047,44.0,142.11,142.08,40.47945457]
[1750965746541,44.0,142.11,142.09,7.0349]
[1750965747850,44.0,142.11,142.1,7.0348]
[1750965749950,44.0,142.11,142.08,35.94]
[1750965750156,51.0345,142.11,142.08,35.94]
[1750965750353,44.0,142.11,142.07,4.53945457]
[1750965750748,44.0,142.11,142.06,2.2695]
[1750965750948,44.0,142.11,142.05,42.83675457]
[1750965751147,48.53945457,142.11,142.05,40.43945457]
[1750965751349,7.0356,142.09,142.05,40.43945457]
[1750965751653,7.0356,142.09,142.07,7.0362]
[1750965752044,7.0359,142.08,142.06,7.0365]
[1750965752248,48.53945457,142.11,142.03,40.43945457]
[1750965752446,2.57846472,142.1,142.03,40.43945457]
[1750965752651,7.0366,142.07,142.03,4.53945457]
[1750965753051,48.53945457,142.11,142.03,4.53945457]
[1750965753249,7.0358,142.09,142.06,7.0365]
[1750965755061,7.0359,142.08,142.06,7.0365]
[1750965755660,35.9,142.08,142.01,4.53945457]
[1750965755867,4.53945457,142.07,142.01,4.53945457]
[1750965756167,7.0367,142.07,142.04,7.0375]
[1750965757067,42.9361,142.08,142.03,4.53945457]
[1750965757360,35.9,142.08,142.03,4.53945457]
[1750965757562,35.9,142.08,142.05,7.0372]
[1750965758256,2.59258363,142.07,142.05,7.0372]
[1750965758457,35.9,142.08,142.05,7.0372]
[1750965758662,9.62908363,142.07,142.05,7.0372]
[1750965758862,7.0365,142.07,142.05,7.0372]
[1750965759072,7.0365,142.07,142.01,4.53945457]
[1750965759562,7.0365,142.07,142.04,7.0374]
[1750965759762,7.0365,142.07,142.01,4.53945457]
[1750965760363,4.53945457,142.07,142.01,4.53945457]
[1750965761570,7.0373,142.05,142.03,7.038]
[1750965764670,35.9,142.08,141.98,15.44560726]
[1750965764876,12.30271955,142.07,142.01,7.0393]
[1750965765175,7.76326498,142.06,141.98,2.2916]
[1750965765467,2.5846251,142.05,142.01,7.0392]
[1750965765667,4.53945457,142.07,142.01,7.0392]
[1750965765861,7.0386,142.03,142.01,7.0392]
[1750965766062,7.0386,142.03,142.0,7.0395]
[1750965768278,7.0386,142.03,142.01,7.0392]
[1750965770772,7.0388,142.02,141.98,6.83105457]
[1750965770973,4.53945457,142.05,141.98,6.83105457]
[1750965771274,7.0386,142.03,142.0,7.0394]
[1750965771476,7.0386,142.03,141.98,6.83105457]
[1750965772079,7.0386,142.03,142.01,7.039]
[1750965775075,7.0389,142.02,141.98,6.83105457]
[1750965775274,35.88,142.04,141.98,4.53945457]
[1750965775476,38.1564,142.04,141.97,35.9]
[1750965775678,7.0395,142.01,141.97,35.9]
[1750965776075,7.0399,142.0,141.98,7.0403]
[1750965776279,7.0399,142.0,141.95,70.95780844]
[1750965776280,4.53945457,142.03,141.95,75.49726301]
[1750965776480,9.32835457,142.03,141.95,4.53945457]
[1750965776881,4.53945457,142.01,141.93,42.82595457]
[1750965777379,7.041,141.98,141.95,7.0422]
[1750965777584,7.041,141.98,141.93,42.82595457]
[1750965777882,7.041,141.98,141.96,7.0417]
[1750965778183,7.0414,141.97,141.93,40.41945457]
[1750965778385,7.0414,141.97,141.95,7.042]
[1750965778574,7.0414,141.97,141.93,40.41945457]
[1750965778885,7.0414,141.97,141.94,7.0423]
[1750965779677,7.041,141.98,141.95,7.0421]
[1750965779875,7.041,141.98,141.93,35.88]
[1750965780280,7.041,141.98,141.96,7.0417]
[1750965780483,7.041,141.98,141.93,35.88]
[1750965780886,7.041,141.98,141.95,7.042]
[1750965781589,7.041,141.98,141.93,35.88]
[1750965782090,7.041,141.98,141.95,7.0419]
[1750965783392,7.041,141.98,141.96,7.0416]
[1750965783592,7.041,141.98,141.93,35.88]
[1750965783992,7.041,141.98,141.95,7.0419]
[1750965787995,7.0414,141.97,141.95,7.0419]
[1750965789400,7.0414,141.97,141.94,7.0426]
[1750965790095,7.0418,141.96,141.94,7.0426]
[1750965790296,4.53945457,141.97,141.92,7.0436]
[1750965790491,4.53945457,141.95,141.88,70.38107657]
[1750965790690,7.045,141.9,141.85,4.53945457]
[1750965790998,4.53945457,141.91,141.85,4.53945457]
[1750965791189,7.044,141.92,141.87,4.53945457]
[1750965791592,38.2102,141.94,141.87,4.53945457]
[1750965791795,7.0433,141.93,141.87,4.53945457]
[1750965792095,7.0433,141.93,141.9,7.0444]
[1750965792797,7.044,141.92,141.89,7.045]
[1750965792994,4.53945457,141.93,141.89,7.045]
[1750965793393,7.0438,141.92,141.9,7.0447]
[1750965793589,38.2102,141.94,141.85,4.53945457]
[1750965793590,35.9,141.94,141.86,14.0932]
[1750965793794,2.3772,141.99,141.93,4.53945457]
[1750965793990,35.9,142.0,141.98,7.0408]
[1750965794294,35.9,142.0,141.95,4.53945457]
[1750965794892,42.9398,142.0,141.95,4.53945457]
[1750965795090,42.9398,142.0,141.97,7.0409]
[1750965796292,35.9,142.0,141.93,4.53945457]
[1750965796998,7.0406,141.99,141.96,7.0415]
[1750965798400,42.9402,142.0,141.93,4.53945457]
[1750965798897,7.0405,141.99,141.96,7.0415]
[1750965799396,42.94,142.0,141.97,7.041]
[1750965799990,7.0405,141.99,141.96,7.0416]
[1750965800297,7.0405,141.99,141.93,4.53945457]
[1750965800496,42.9402,142.0,141.93,4.53945457]
[1750965801000,42.9402,142.0,141.95,4.53945457]
[1750965801199,7.0403,141.99,141.96,7.0415]
[1750965801400,7.0403,141.99,141.95,4.53945457]
[1750965802099,7.0403,141.99,141.96,7.0417]
[1750965802696,7.0403,141.99,141.97,7.0412]
[1750965803906,7.0403,141.99,141.96,7.0415]
[1750965804395,42.94,142.0,141.95,4.53945457]
[1750965804600,42.94,142.0,141.97,7.0412]
[1750965805200,7.0403,141.99,141.97,7.0412]
[1750965806196,42.94,142.0,141.97,7.0412]
[1750965806397,35.9,142.0,141.95,4.53945457]
[1750965807896,42.9399,142.0,141.98,7.0405]
[1750965808402,35.9,142.0,141.99,7.0403]
[1750965809902,35.9,142.0,141.98,7.0405]
[1750965810102,35.9,142.0,141.97,4.53945457]
[1750965810400,7.0405,141.99,141.95,4.53945457]
[1750965810995,7.0408,141.98,141.92,4.6437]
[1750965811193,7.0408,141.98,141.93,4.53945457]
[1750965812106,7.0408,141.98,141.96,7.0417]
[1750965812991,7.0405,141.99,141.97,7.0413]
[1750965813405,35.9,142.0,141.93,4.53945457]
[1750965813601,7.0408,141.98,141.96,7.0415]
[1750965814108,35.9,142.0,141.93,4.53945457]
[1750965814404,7.0406,141.99,141.96,7.0413]
[1750965815498,7.0406,141.99,141.93,4.53945457]
[1750965815706,7.0406,141.99,141.95,4.53945457]
[1750965816806,7.0406,141.99,141.97,7.0408]
[1750965817304,42.94,142.0,141.98,7.0408]
[1750965818499,9.61703487,142.03,141.95,4.53945457]
[1750965818708,43.50539011,142.02,141.97,4.53945457]
[1750965819008,35.86,142.02,141.97,4.53945457]
[1750965819503,35.86,142.02,141.97,6.87615457]
[1750965819709,35.86,142.02,142.01,7.0393]
[1750965820014,35.86,142.05,141.99,4.53945457]
[1750965820205,2.56703734,142.04,141.99,4.53945457]
[1750965820508,42.8976,142.05,142.02,7.0383]
[1750965821110,7.0379,142.04,142.02,7.0383]
[1750965823011,35.86,142.05,141.99,4.53945457]
[1750965823217,35.86,142.08,142.03,4.53945457]